fUST/lending_fUST_20240423
["ID","MTS","AMOUNT","RATE_DAILY","PERIOD"]
[323298261,1713880246616,-439.24201302,0.00021913,2]
[323298262,1713880246627,-1713.97837095,0.00021915,2]
[323298263,1713880246637,-289.98901566,0.00021915,4]
[323298264,1713880246646,-250.75982324,0.00021915,2]
[323298265,1713880246656,-361.75151942,0.00021915,2]
[323298266,1713880246666,-154.84515485,0.00021915,2]
[323298267,1713880246676,-320.71186108,0.00021917,2]
[323298268,1713880246685,-200.0,0.00021917,2]
[323298269,1713880246696,-500.0,0.00021917,2]
[323298270,1713880246705,-500.0,0.00021917,2]
[323298271,1713880246714,-500.0,0.00021917,2]
[323298272,1713880246723,-529.47,0.00021917,2]
[323298273,1713880246733,-500.0,0.00021917,2]
[323298274,1713880246742,-500.0,0.00021917,2]
[323298275,1713880246751,-500.0,0.00021917,2]
[323298276,1713880246761,-1088.41,0.00021917,2]
[323298277,1713880246770,-500.0,0.00021917,2]
[323298278,1713880246780,-500.0,0.00021917,2]
[323298280,1713880246790,-500.0,0.00021917,2]
[323298282,1713880246799,-500.0,0.00021917,2]
[323298283,1713880246809,-500.0,0.00021917,2]
[323298285,1713880246822,-500.0,0.00021917,2]
[323298286,1713880246831,-500.0,0.00021917,2]
[323298288,1713880246841,-500.0,0.00021917,2]
[323298290,1713880246850,-500.0,0.00021917,2]
[323298292,1713880246859,-500.0,0.00021917,2]
[323298294,1713880246868,-833.24,0.00021917,2]
[323298296,1713880246877,-500.0,0.00021917,2]
[323298298,1713880246886,-560.37,0.00021917,2]
[323298300,1713880246895,-585.91338873,0.00021917,2]
[323298302,1713880246904,-623.59,0.00021917,2]
[323298304,1713880246913,-500.0,0.00021917,2]
[323298306,1713880246922,-968.78,0.00021917,2]
[323298308,1713880246931,-500.0,0.00021917,2]
[323298310,1713880246940,-500.0,0.00021917,2]
[323298312,1713880246950,-559.73,0.00021917,2]
[323298314,1713880246959,-515.77253081,0.00021917,2]
[323298316,1713880246969,-500.0,0.00021917,2]
[323298318,1713880246979,-500.0,0.00021917,2]
[323298320,1713880246988,-500.0,0.00021917,2]
[323298321,1713880246997,-586.89,0.00021917,2]
[323298323,1713880247007,-500.0,0.00021917,2]
[323298325,1713880247016,-283.47586801,0.00021917,2]
[323298327,1713880247025,-500.0,0.00021917,2]
[323298329,1713880247034,-500.0,0.00021917,2]
[323298331,1713880247043,-646.361755,0.00021917,2]
[323298333,1713880247052,-500.0,0.00021917,2]
[323298335,1713880247062,-500.0,0.00021917,2]
[323298337,1713880247075,-617.8,0.00021917,2]
[323298339,1713880247084,-500.0,0.00021917,2]
[323298341,1713880247093,-500.0,0.00021917,2]
[323298343,1713880247103,-500.0,0.00021917,2]
[323298345,1713880247112,-500.0,0.00021917,2]
[323298347,1713880247121,-500.0,0.00021917,2]
[323298349,1713880247130,-500.0,0.00021917,2]
[323298351,1713880247139,-228.59812908,0.00021917,2]
[323298353,1713880247149,-500.0,0.00021917,2]
[323298355,1713880247158,-500.0,0.00021917,2]
[323298357,1713880247167,-500.0,0.00021917,2]
[323298359,1713880247175,-500.0,0.00021917,2]
[323298361,1713880247184,-506.3832999,0.00021917,2]
[323298363,1713880247195,-500.0,0.00021917,2]
[323298365,1713880247204,-500.0,0.00021917,2]
[323298367,1713880247212,-946.76,0.00021917,2]
[323298369,1713880247221,-500.0,0.00021917,2]
[323298371,1713880247230,-500.0,0.00021917,2]
[323298373,1713880247239,-500.0,0.00021917,2]
[323298375,1713880247249,-500.0,0.00021917,2]
[323298377,1713880247258,-500.0,0.00021917,2]
[323298378,1713880247267,-500.0,0.00021917,2]
[323298380,1713880247276,-500.0,0.00021917,2]
[323298382,1713880247285,-500.0,0.00021917,2]
[323298384,1713880247295,-500.0,0.00021917,2]
[323298387,1713880247307,-500.0,0.00021917,2]
[323298389,1713880247318,-500.0,0.00021917,2]
[323298390,1713880247327,-500.0,0.00021917,2]
[323298393,1713880247337,-507.17171376,0.00021917,2]
[323298394,1713880247347,-501.68120795,0.00021917,2]
[323298396,1713880247357,-500.0,0.00021917,2]
[323298398,1713880247366,-500.0,0.00021917,2]
[323298400,1713880247376,-500.0,0.00021917,2]
[323298402,1713880247386,-500.0,0.00021917,2]
[323298404,1713880247396,-500.0,0.00021917,2]
[323298406,1713880247406,-814.24,0.00021917,2]
[323298408,1713880247415,-500.0,0.00021917,2]
[323298410,1713880247425,-500.0,0.00021917,2]
[323298412,1713880247434,-500.0,0.00021917,2]
[323298414,1713880247444,-500.0,0.00021917,2]
[323298416,1713880247453,-608.27,0.00021917,2]
[323298418,1713880247462,-500.0,0.00021917,2]
[323298420,1713880247471,-500.0,0.00021917,2]
[323298422,1713880247482,-592.89939903,0.00021917,2]
[323298424,1713880247491,-500.0,0.00021917,2]
[323298426,1713880247501,-558.97,0.00021917,2]
[323298428,1713880247510,-500.0,0.00021917,2]
[323298430,1713880247520,-622.13,0.00021917,2]
[323298432,1713880247530,-500.0,0.00021917,2]
[323298434,1713880247539,-500.0,0.00021917,2]
[323298435,1713880247548,-392.66360085,0.00021917,2]
[323298437,1713880247557,-662.02,0.00021917,2]
[323298439,1713880247569,-500.0,0.00021917,2]
[323298441,1713880247578,-200.96345925,0.00021917,2]
[323298443,1713880247588,-500.0,0.00021917,2]
[323298445,1713880247597,-507.69,0.00021917,2]
[323298447,1713880247606,-500.0,0.00021917,2]
[323298449,1713880247616,-500.0,0.00021917,2]
[323298452,1713880247625,-523.96,0.00021917,2]
[323298453,1713880247635,-528.3533825,0.00021917,2]
[323298456,1713880247644,-500.0,0.00021917,2]
[323298458,1713880247653,-171.2943547,0.00021917,2]
[323298460,1713880247663,-248.51,0.00021917,2]
[323298462,1713880247672,-500.0,0.00021917,2]
[323298464,1713880247682,-500.0,0.00021917,2]
[323298465,1713880247691,-504.79379723,0.00021917,2]
[323298468,1713880247701,-500.0,0.00021917,2]
[323298470,1713880247710,-658.23,0.00021917,2]
[323298482,1713880247814,-500.0,0.00021917,2]
[323298484,1713880247825,-398.72465794,0.00021917,2]
[323298486,1713880247834,-500.0,0.00021917,2]
[323298488,1713880247844,-500.0,0.00021917,2]
[323298490,1713880247854,-500.0,0.00021917,2]
[323298492,1713880247864,-741.1,0.00021917,2]
[323298494,1713880247874,-508.67049919,0.00021917,2]
[323298496,1713880247882,-500.0,0.00021917,2]
[323298498,1713880247891,-1882.41,0.00021917,2]
[323298500,1713880247901,-500.0,0.00021917,2]
[323298502,1713880247910,-500.0,0.00021917,2]
[323298504,1713880247919,-500.0,0.00021917,2]
[323298505,1713880247928,-1060.55,0.00021917,2]
[323298507,1713880247937,-500.0,0.00021917,2]
[323298509,1713880247946,-500.0,0.00021917,2]
[323298511,1713880247955,-500.0,0.00021917,2]
[323298513,1713880247964,-1456.67,0.00021917,2]
[323298515,1713880247974,-500.0,0.00021917,2]
[323298517,1713880247983,-486.93249255,0.00021917,2]
[323298519,1713880247992,-623.64,0.00021917,2]
[323298521,1713880248002,-683.97,0.00021917,2]
[323298523,1713880248011,-500.0,0.00021917,2]
[323298525,1713880248022,-500.0,0.00021917,2]
[323298527,1713880248031,-500.0,0.00021917,2]
[323298530,1713880248041,-1061.7,0.00021917,2]
[323298531,1713880248050,-500.17158671,0.00021917,2]
[323298533,1713880248060,-22715.18,0.00021917,2]
[323298535,1713880248070,-518.33017643,0.00021917,2]
[323298537,1713880248080,-500.0,0.00021917,2]
[323298539,1713880248089,-1380.34,0.00021917,2]
[323298541,1713880248098,-1642.12,0.00021917,2]
[323298543,1713880248107,-500.0,0.00021917,2]
[323298546,1713880248117,-916.17,0.00021917,2]
[323298548,1713880248126,-12691.48,0.00021917,2]
[323298549,1713880248135,-590.11,0.00021917,2]
[323298552,1713880248145,-500.0,0.00021917,2]
[323298553,1713880248154,-1625.36,0.00021917,2]
[323298555,1713880248164,-500.0,0.00021917,2]
[323298557,1713880248173,-500.0,0.00021917,2]
[323298559,1713880248183,-500.0,0.00021917,2]
[323298562,1713880248193,-500.0,0.00021917,2]
[323298564,1713880248203,-500.0,0.00021917,2]
[323298566,1713880248212,-500.0,0.00021917,2]
[323298568,1713880248221,-500.0,0.00021917,2]
[323298570,1713880248230,-247.45506757,0.00021917,2]
[323298572,1713880248240,-1333.48,0.00021917,2]
[323298573,1713880248249,-500.0,0.00021917,2]
[323298575,1713880248258,-500.0,0.00021917,2]
[323298577,1713880248267,-500.0,0.00021917,2]
[323298579,1713880248277,-510.27205363,0.00021917,2]
[323298581,1713880248286,-500.0,0.00021917,2]
[323298583,1713880248297,-500.0,0.00021917,2]
[323298584,1713880248307,-500.0,0.00021917,2]
[323298585,1713880248321,-500.0,0.00021917,2]
[323298586,1713880248330,-500.0,0.00021917,2]
[323298587,1713880248340,-189.35698328,0.00021917,2]
[323298588,1713880248349,-527.59,0.00021917,2]
[323298589,1713880248359,-288.71947098,0.00021917,2]
[323298590,1713880248368,-500.0,0.00021917,2]
[323298591,1713880248377,-2241.05,0.00021917,2]
[323298592,1713880248386,-500.0,0.00021917,2]
[323298593,1713880248395,-500.0,0.00021917,2]
[323298594,1713880248405,-500.0,0.00021917,2]
[323298595,1713880248414,-500.0,0.00021917,2]
[323298596,1713880248423,-500.0,0.00021917,2]
[323298597,1713880248433,-2385.63,0.00021917,2]
[323298598,1713880248442,-10156.77,0.00021917,2]
[323298599,1713880248451,-500.0,0.00021917,2]
[323298600,1713880248460,-500.0,0.00021917,2]
[323298601,1713880248470,-500.0,0.00021917,2]
[323298602,1713880248479,-500.0,0.00021917,2]
[323298603,1713880248488,-500.0,0.00021917,2]
[323298604,1713880248497,-500.0,0.00021917,2]
[323298606,1713880248509,-500.0,0.00021917,2]
[323298608,1713880248518,-603.87,0.00021917,2]
[323298610,1713880248527,-500.0,0.00021917,2]
[323298612,1713880248536,-500.0,0.00021917,2]
[323298614,1713880248545,-500.0,0.00021917,2]
[323298616,1713880248554,-500.0,0.00021917,2]
[323298618,1713880248563,-500.0,0.00021917,2]
[323298620,1713880248577,-1814.82,0.00021917,2]
[323298621,1713880248586,-500.0,0.00021917,2]
[323298624,1713880248596,-500.0,0.00021917,2]
[323298625,1713880248605,-500.0,0.00021917,2]
[323298627,1713880248613,-3528.51,0.00021917,2]
[323298629,1713880248623,-500.0,0.00021917,2]
[323298630,1713880248632,-501.81796725,0.00021917,2]
[323298632,1713880248641,-405.66355875,0.00021917,2]
[323298634,1713880248650,-500.0,0.00021917,2]
[323298636,1713880248659,-500.0,0.00021917,2]
[323298638,1713880248669,-500.0,0.00021917,2]
[323298640,1713880248678,-500.0,0.00021917,2]
[323298642,1713880248687,-1618.55,0.00021917,2]
[323298643,1713880248696,-500.0,0.00021917,2]
[323298644,1713880248704,-500.0,0.00021917,2]
[323298645,1713880248713,-778.28,0.00021917,2]
[323298646,1713880248722,-508.80885748,0.00021917,2]
[323298647,1713880248733,-684.67,0.00021917,2]
[323298648,1713880248747,-858.8,0.00021917,2]
[323298649,1713880248760,-1284.03,0.00021917,2]
[323298650,1713880248772,-1777.93,0.00021917,2]
[323298651,1713880248783,-567.37810752,0.00021917,2]
[323298652,1713880248795,-666.9,0.00021917,2]
[323298653,1713880248807,-209.21,0.00021917,2]
[323298654,1713880248822,-500.0,0.00021917,2]
[323298655,1713880248836,-500.0,0.00021917,2]
[323298656,1713880248847,-810.46,0.00021917,2]
[323298657,1713880248860,-500.0,0.00021917,2]
[323298658,1713880248871,-1437.25,0.00021917,2]
[323298659,1713880248884,-440.67037134,0.00021917,2]
[323298660,1713880248896,-362.14182298,0.00021917,2]
[323298661,1713880248908,-500.0,0.00021917,2]
[323298662,1713880248919,-12953.5435297,0.00021917,2]
[323298746,1713881147113,-459.70738052,0.0001635,2]
[323298747,1713881147133,-154.81422293,0.00016351,2]
[323298748,1713881147153,-430.68580645,0.00016356,2]
[323298749,1713881147173,-1247.3782967,0.00017542,2]
[323298750,1713881147193,-223.61417,0.00017595,2]
[323298751,1713881147214,-300.0,0.00018174,2]
[323298752,1713881147236,-300.0,0.00018174,2]
[323298753,1713881147256,-3132.20228363,0.00018174,2]
[323298754,1713881147279,-9202.12651191,0.00018175,2]
[323298756,1713881358104,-551.63533714,0.00015883,2]
[323298757,1713881358128,-776.40480682,0.00015884,2]
[323298758,1713881358152,-344.2532532,0.00015984,2]
[323298759,1713881358172,-157.76351589,0.00016335,2]
[323298760,1713881358194,-1955.3744156,0.00016445,2]
[323298761,1713881358212,-272.57129579,0.00017759,2]
[323298762,1713881358233,-1311.74164115,0.0001776,2]
[323298763,1713881358254,-300.0,0.0001776,2]
[323298764,1713881358274,-169.51702397,0.0001776,2]
[323298803,1713881432480,-223.61417,0.00017028,2]
[323298805,1713881432491,-272.57129579,0.00017759,2]
[323298807,1713881432500,-300.0,0.0001776,2]
[323298809,1713881432509,-300.0,0.0001776,2]
[323298811,1713881432518,-154.81422293,0.0001776,2]
[323298813,1713881432527,-154.81422293,0.0001776,2]
[323298815,1713881432536,-221.86358459,0.0001776,2]
[323298817,1713881432545,-386.01178664,0.0001776,2]
[323298818,1713881432554,-16090.47686539,0.0001776,2]
[323298819,1713881432563,-180.31386745,0.0001776,2]
[323298821,1713881432573,-692.70825887,0.0001776,2]
[323298823,1713881432582,-11233.33827436,0.00017761,2]
[323298881,1713881438429,-18835.47772625,0.00017761,2]
[323298883,1713881438438,-24900.0,0.00017762,2]
[323298885,1713881438447,-3384.66457059,0.00018,2]
[323298887,1713881438456,-174.35863326,0.00018174,2]
[323298888,1713881438465,-12812.02205124,0.00018175,2]
[323298890,1713881438475,-159.33619992,0.00018175,2]
[323298892,1713881438484,-154.89156354,0.00018175,2]
[323298894,1713881438493,-189.19295912,0.0001897,2]
[323298896,1713881438504,-637.9252794,0.00019,2]
[323298898,1713881438513,-855.45,0.00019065,3]
[323298900,1713881438523,-427.72,0.00019065,3]
[323298902,1713881438532,-213.86,0.00019065,3]
[323298904,1713881438543,-641.63,0.00019065,3]
[323298906,1713881438553,-883.78313678,0.00019073,2]
[323298908,1713881438563,-308.49906714,0.00019073,2]
[323298910,1713881438573,-311.66869065,0.00019073,2]
[323298912,1713881438584,-157.76351589,0.00019073,2]
[323298913,1713881438594,-177.38128243,0.00019074,2]
[323298914,1713881438604,-35814.32839589,0.00019075,2]
[323298915,1713881438614,-323.12836247,0.00019078,2]
[323298916,1713881438624,-162.02240911,0.00019176,2]
[323298917,1713881438637,-247.22010741,0.00019176,2]
[323298918,1713881438648,-155.07799985,0.00019176,2]
[323298919,1713881438658,-191.70251594,0.00019176,2]
[323298920,1713881438668,-155.3169759,0.00019176,2]
[323298921,1713881438677,-207.85032377,0.00019176,2]
[323298922,1713881438689,-186.38249675,0.00019176,2]
[323298923,1713881438699,-207.98156917,0.00019176,2]
[323298924,1713881438709,-163.35072006,0.00019176,2]
[323298925,1713881438719,-162.55370542,0.00019176,2]
[323298926,1713881438729,-302.49470746,0.00019177,2]
[323298927,1713881438738,-2587.27470458,0.00019177,2]
[323298928,1713881438749,-537.02,0.00019178,2]
[323298929,1713881438758,-500.0,0.00019178,2]
[323298930,1713881438767,-500.0,0.00019178,2]
[323298931,1713881438777,-500.0,0.00019178,2]
[323298932,1713881438786,-500.0,0.00019178,2]
[323298933,1713881438795,-500.0,0.00019178,2]
[323298934,1713881438804,-500.0,0.00019178,2]
[323298935,1713881438813,-500.0,0.00019178,2]
[323298936,1713881438822,-500.0,0.00019178,2]
[323298937,1713881438831,-503.09762238,0.00019178,2]
[323298938,1713881438841,-500.0,0.00019178,2]
[323298939,1713881438850,-562.44,0.00019178,2]
[323298940,1713881438859,-541.60503942,0.00019178,2]
[323298941,1713881438867,-500.0,0.00019178,2]
[323298942,1713881438877,-500.0,0.00019178,2]
[323298943,1713881438886,-500.0,0.00019178,2]
[323298944,1713881438894,-500.0,0.00019178,2]
[323298945,1713881438904,-500.0,0.00019178,2]
[323298946,1713881438913,-500.0,0.00019178,2]
[323298947,1713881438922,-500.0,0.00019178,2]
[323298948,1713881438931,-500.0,0.00019178,2]
[323298949,1713881438940,-582.07043103,0.00019178,2]
[323298950,1713881438949,-500.0,0.00019178,2]
[323298951,1713881438958,-500.0,0.00019178,2]
[323298952,1713881438968,-500.0,0.00019178,2]
[323298953,1713881438976,-648.66851977,0.00019178,2]
[323298954,1713881438985,-500.0,0.00019178,2]
[323298955,1713881438996,-500.0,0.00019178,2]
[323298956,1713881439005,-245.21291609,0.00019178,2]
[323298957,1713881439014,-502.58328906,0.00019178,2]
[323298958,1713881439022,-500.00000046,0.00019178,2]
[323298959,1713881439032,-500.99350523,0.00019178,2]
[323298960,1713881439041,-500.0,0.00019178,2]
[323298961,1713881439051,-500.0,0.00019178,2]
[323298962,1713881439060,-780.31,0.00019178,2]
[323298963,1713881439069,-500.0,0.00019178,2]
[323298964,1713881439079,-224.4102939,0.00019178,2]
[323298965,1713881439088,-500.0,0.00019178,2]
[323298966,1713881439097,-500.0,0.00019178,2]
[323298967,1713881439106,-259.26277485,0.00019178,2]
[323298968,1713881439115,-500.0,0.00019178,2]
[323298969,1713881439124,-500.0,0.00019178,2]
[323298970,1713881439133,-500.0,0.00019178,2]
[323298971,1713881439143,-500.0,0.00019178,2]
[323298972,1713881439153,-500.0,0.00019178,2]
[323298973,1713881439162,-2000.0,0.00019178,2]
[323298974,1713881439171,-500.0,0.00019178,2]
[323298975,1713881439180,-500.0,0.00019178,2]
[323298976,1713881439189,-500.0,0.00019178,2]
[323298977,1713881439199,-500.0,0.00019178,2]
[323298978,1713881439208,-500.0,0.00019178,2]
[323298979,1713881439217,-500.0,0.00019178,2]
[323298980,1713881439226,-500.0,0.00019178,2]
[323298981,1713881439235,-500.0,0.00019178,2]
[323298982,1713881439246,-505.54132758,0.00019178,2]
[323298983,1713881439254,-500.0,0.00019178,2]
[323298984,1713881439263,-500.0,0.00019178,2]
[323298985,1713881439272,-500.0,0.00019178,2]
[323298986,1713881439281,-500.0,0.00019178,2]
[323298987,1713881439290,-500.0,0.00019178,2]
[323298988,1713881439299,-500.0,0.00019178,2]
[323298989,1713881439308,-303.00788467,0.00019178,2]
[323298990,1713881439432,-500.0,0.00019178,2]
[323298991,1713881439442,-500.0,0.00019178,2]
[323298992,1713881439453,-624.72,0.00019178,2]
[323298993,1713881439462,-165.56037737,0.00019178,2]
[323298994,1713881439471,-500.0,0.00019178,2]
[323298995,1713881439481,-500.0,0.00019178,2]
[323298996,1713881439490,-500.0,0.00019178,2]
[323298997,1713881439500,-500.0,0.00019178,2]
[323298998,1713881439509,-500.0,0.00019178,2]
[323298999,1713881439519,-500.0,0.00019178,2]
[323299000,1713881439529,-500.0,0.00019178,2]
[323299001,1713881439537,-500.0,0.00019178,2]
[323299002,1713881439547,-500.0,0.00019178,2]
[323299003,1713881439556,-500.0,0.00019178,2]
[323299004,1713881439565,-560.74,0.00019178,2]
[323299005,1713881439574,-432.18584531,0.00019178,2]
[323299006,1713881439583,-500.0,0.00019178,2]
[323299007,1713881439594,-500.0,0.00019178,2]
[323299008,1713881439603,-500.0,0.00019178,2]
[323299009,1713881439613,-500.0,0.00019178,2]
[323299010,1713881439622,-540.91,0.00019178,2]
[323299011,1713881439631,-500.0,0.00019178,2]
[323299012,1713881439641,-500.0,0.00019178,2]
[323299013,1713881439651,-618.92,0.00019178,2]
[323299014,1713881439661,-500.0,0.00019178,2]
[323299015,1713881439670,-500.0,0.00019178,2]
[323299016,1713881439679,-165.69425574,0.00019178,2]
[323299017,1713881439689,-500.0,0.00019178,2]
[323299018,1713881439698,-500.0,0.00019178,2]
[323299019,1713881439707,-500.0,0.00019178,2]
[323299020,1713881439717,-500.0,0.00019178,2]
[323299021,1713881439727,-500.0,0.00019178,2]
[323299022,1713881439736,-500.0,0.00019178,2]
[323299023,1713881439746,-640.64982766,0.00019178,2]
[323299024,1713881439755,-172.61406582,0.00019178,2]
[323299025,1713881439764,-442.71151834,0.00019178,2]
[323299026,1713881439773,-416.9102247,0.00019178,2]
[323299027,1713881439782,-500.0,0.00019178,2]
[323299028,1713881439791,-1230.53,0.00019178,2]
[323299029,1713881439800,-500.0,0.00019178,2]
[323299030,1713881439809,-582.92,0.00019178,2]
[323299031,1713881439818,-500.0,0.00019178,2]
[323299032,1713881439827,-500.0,0.00019178,2]
[323299033,1713881439837,-507.99465319,0.00019178,2]
[323299034,1713881439845,-500.0,0.00019178,2]
[323299035,1713881439854,-685.91,0.00019178,2]
[323299036,1713881439863,-500.0,0.00019178,2]
[323299037,1713881439873,-500.0,0.00019178,2]
[323299038,1713881439882,-500.0,0.00019178,2]
[323299039,1713881439891,-600.69,0.00019178,2]
[323299040,1713881439900,-500.0,0.00019178,2]
[323299041,1713881439910,-559.01971399,0.00019178,2]
[323299042,1713881439919,-500.0,0.00019178,2]
[323299043,1713881439928,-500.0,0.00019178,2]
[323299044,1713881439937,-500.853556,0.00019178,2]
[323299045,1713881439946,-710.22,0.00019178,2]
[323299046,1713881439955,-1803.97,0.00019178,2]
[323299047,1713881439964,-1016.36,0.00019178,2]
[323299048,1713881439973,-500.0,0.00019178,2]
[323299049,1713881439981,-597.65,0.00019178,2]
[323299050,1713881439991,-14150.49,0.00019178,2]
[323299051,1713881440003,-500.0,0.00019178,2]
[323299052,1713881440012,-1017.46,0.00019178,2]
[323299053,1713881440021,-500.0,0.00019178,2]
[323299054,1713881440030,-500.0,0.00019178,2]
[323299055,1713881440041,-12162.67,0.00019178,2]
[323299056,1713881440051,-1322.83,0.00019178,2]
[323299057,1713881440060,-21768.71,0.00019178,2]
[323299058,1713881440069,-565.52,0.00019178,2]
[323299059,1713881440078,-500.0,0.00019178,2]
[323299060,1713881440087,-500.0,0.00019178,2]
[323299061,1713881440096,-501.55429813,0.00019178,2]
[323299062,1713881440106,-500.0,0.00019178,2]
[323299063,1713881440116,-878.0,0.00019178,2]
[323299064,1713881440126,-500.0,0.00019178,2]
[323299065,1713881440135,-1573.7,0.00019178,2]
[323299066,1713881440144,-500.0,0.00019178,2]
[323299067,1713881440153,-500.0,0.00019178,2]
[323299068,1713881440162,-1557.64,0.00019178,2]
[323299070,1713881440171,-500.0,0.00019178,2]
[323299071,1713881440181,-500.0,0.00019178,2]
[323299072,1713881440191,-1277.92,0.00019178,2]
[323299073,1713881440201,-500.0,0.00019178,2]
[323299074,1713881440210,-530.43,0.00019178,2]
[323299075,1713881440219,-225.99638695,0.00019178,2]
[323299077,1713881440228,-1090.38,0.00019178,2]
[323299079,1713881440237,-500.0,0.00019178,2]
[323299080,1713881440246,-500.0,0.00019178,2]
[323299083,1713881440255,-500.0,0.00019178,2]
[323299084,1713881440264,-500.0,0.00019178,2]
[323299085,1713881440273,-473.24759483,0.00019178,2]
[323299086,1713881440282,-180.29576103,0.00019178,2]
[323299087,1713881440291,-461.92467003,0.00019178,2]
[323299088,1713881440300,-500.0,0.00019178,2]
[323299089,1713881440309,-500.0,0.00019178,2]
[323299090,1713881440319,-2286.23,0.00019178,2]
[323299091,1713881440328,-500.0,0.00019178,2]
[323299092,1713881440337,-2147.68,0.00019178,2]
[323299093,1713881440347,-500.0,0.00019178,2]
[323299094,1713881440356,-500.0,0.00019178,2]
[323299095,1713881440365,-500.0,0.00019178,2]
[323299096,1713881440375,-500.0,0.00019178,2]
[323299097,1713881440384,-500.0,0.00019178,2]
[323299099,1713881440393,-9733.57,0.00019178,2]
[323299101,1713881440402,-618.17248374,0.00019178,2]
[323299102,1713881440411,-500.0,0.00019178,2]
[323299104,1713881440421,-476.58650304,0.00019178,2]
[323299106,1713881440430,-1739.2,0.00019178,2]
[323299108,1713881440439,-578.71,0.00019178,2]
[323299110,1713881440448,-500.0,0.00019178,2]
[323299112,1713881440456,-500.0,0.00019178,2]
[323299114,1713881440465,-745.85,0.00019178,2]
[323299116,1713881440474,-500.0,0.00019178,2]
[323299118,1713881440483,-500.0,0.00019178,2]
[323299120,1713881440492,-823.02,0.00019178,2]
[323299122,1713881440508,-639.11,0.00019178,2]
[323299124,1713881440517,-164.66164206,0.00019178,2]
[323299126,1713881440527,-1551.11,0.00019178,2]
[323299128,1713881440538,-1377.36,0.00019178,2]
[323299130,1713881440547,-420.12209796,0.00019178,2]
[323299132,1713881440556,-161.638748,0.00019178,2]
[323299134,1713881440566,-159.522289,0.00019178,2]
[323299136,1713881440575,-323.12836247,0.00019284,2]
[323299138,1713881440584,-420.0,0.00019383,2]
[323299140,1713881440593,-500.0,0.00019451,2]
[323299142,1713881440601,-537.02,0.00019452,2]
[323299144,1713881440610,-500.0,0.00019452,2]
[323299146,1713881440620,-150.91054347,0.00019452,2]
[323299148,1713881440629,-500.0,0.00019452,2]
[323299150,1713881440641,-500.0,0.00019452,2]
[323299152,1713881440650,-457.47137992,0.00019452,2]
[323299154,1713881440659,-562.44,0.00019452,2]
[323299156,1713881440669,-500.0,0.00019452,2]
[323299158,1713881440679,-500.0,0.00019452,2]
[323299160,1713881440688,-500.0,0.00019452,2]
[323299162,1713881440696,-500.0,0.00019452,2]
[323299164,1713881440706,-500.0,0.00019452,2]
[323299166,1713881440715,-500.0,0.00019452,2]
[323299168,1713881440725,-500.0,0.00019452,2]
[323299170,1713881440734,-500.0,0.00019452,2]
[323299172,1713881440744,-780.31,0.00019452,2]
[323299174,1713881440760,-507.72233272,0.00019452,2]
[323299176,1713881440770,-500.0,0.00019452,2]
[323299178,1713881440780,-500.0,0.00019452,2]
[323299180,1713881440788,-500.0,0.00019452,2]
[323299182,1713881440798,-500.0,0.00019452,2]
[323299184,1713881440807,-500.0,0.00019452,2]